Workbook

Sheet Moves Scale Factor Calculator
B4: Show Overview Help
C6: Class 5 Scale Factor Calculator | F6: See tabs at bottom for more work sheets
C8: Setup info: | D8: Input Value | F8: Output values | I8: (C15/F$6)*F$7*65536
I9: C15*F$8*F$7 | N9: PID Value | O9: Hz
C10: PID: 1,2,4,8 (Defaults to 2) : | D10: 2 | F10: Hz = | G10: =VLOOKUP(D10,N10:O14,2,0) -> 8000 | H10: =(G10^2)/65536 -> 976.5625 | N10: 1 | O10: 16000
C11: Encoder Res (counts per rev) = | D11: 4000 | F11: res = | G11: =D11 -> 4000 | N11: 2 | O11: 8000
C12: Note: 17's and 23's =4000, 34's=8000 | F12: Main Multiplier: | G12: =65536/G10 -> 8.192 | H12: Enc counts/Sec= | I12: VT | N12: 4 | O12: 4000
I13: =G12 -> 8.192 | N13: 8 | O13: 2000
C15: Input | D15: Input Value | F15: Output
G16: Exact value | H16: Integer value | I16: percent error
C17: Velocity Calculation
C18: RPM = | D18: 30 | F18: VT= | G18: =((D18/60)/G$10)*G$11*65536 -> 16384 | H18: =INT(G18) -> 16384 | I18: =((G18-H18)/G18)*100 -> 0
C19: Rev / sec = | D19: 14 | F19: VT= | G19: =D19*$G$12*$G$11 -> 458752 | H19: =INT(G19) -> 458752 | I19: =((G19-H19)/G19)*100 -> 0
C20: VT= | D20: 32768 | F20: Rev/sec = | G20: =(INT(D20)/65536)*(G10/G11) -> 1 | H20: n/a | I20: n/a | J20: RPM= | K20: =G20*60 -> 60
C21: Encoder Counts/Second | D21: 4000 | F21: VT= | G21: =D21*G12 -> 32768 | H21: =INT(G21) -> 32768 | I21: =((G21-H21)/G21)*100 -> 0 | J21: RPS= | K21: =D21/G11 -> 1
C23: Acceleration Calculation
C24: ADT, AT, DT= | D24: 60 | F24: Rev/sec/sec = | G24: =INT(D24)/((G11/(G10*G10))*65536) -> 14.6484375 | H24: n/a | I24: n/a | J24: RPM/sec= | K24: =G24*60 -> 878.90625
C25: rev/sec/sec = | D25: 1 | F25: ADT, AT, DT = | G25: =D25*(G$11/$H$10) -> 4.096 | H25: =INT(G25) -> 4 | I25: 2.34375
C26: RPM/sec = | D26: 6000 | F26: ADT, AT, DT = | G26: =D26*(G$11/$H$10)/60 -> 409.6 | H26: =INT(G26) -> 409 | I26: 0.146484375
C27: Encoder Counts/Sec/Sec | D27: 58624 | F27: ADT, AT, DT = | G27: =D27/H10 -> 60.030976 | H27: =INT(G27) -> 60 | I27: 0.05160002729
F29: Note: Native Velocity Units are: (counts/sample)*65536
F30: Note: Native Accel Units are: (counts/sample/sample)*65536
B31: tv=0 | C31: Move Profile Calculators:
B32: ta=tt/2 | F32: Intermediate Calculations
B33: td=tt/2 | C33: For Triangular Move, If Distance= | D33: 58624 | F33: accel dist: | G33: =D33/2 -> 29312 | K33: speed=(distance)/time
B34: da=d/2 | C34: In a move time of | D34: 1 | E34: sec's | F34: accel time: | G34: =D34/2 -> 0.5 | H34: Minimum Velocity | K34: accel=2(dist)/time^2 | O34: accel=veloc/time
B35: dd=d/2 | C35: VT should be set to > | D35: =I35*$G$12 -> 1920991.232 | F35: accel (cnts/sec^2): | G35: =2*G33/G34^2 -> 234496 | H35: vel(cnt/sec): | I35: =G35/D34 -> 234496 | N35: veloc=accel*time
C36: ADT= | D36: =G35/$H$10 -> 240.123904
B39: tv=tt/3 | C39: For a 1/3-1/3-1/3 trap move , If Distance= | D39: 20000 | F39: accel dist: | G39: =D39/4 -> 5000 | H39: vel dist: | I39: =D39/2 -> 10000
B40: ta=tt/3 | C40: In a move time of | D40: 1 | E40: sec's | F40: accel time: | G40: =D40/3 -> 0.3333333333 | H40: vel time: | I40: =D40/3 -> 0.3333333333 | N40: accel=(vf-vi)
B41: td=tt/3 | C41: VT= | D41: =I41*$G$12 -> 245760 | F41: accel (cnts/sec^2): | G41: =2*G39/G40^2 -> 90000 | H41: vel (cnts/sec): | I41: =I39/I40 -> 30000 | O41: tf-ti
B42: dv=d/2 | C42: ADT= | D42: =G41/$H$10 -> 92.16 | N42: vf=(accel(tf-fi))+vi
B43: da=d/4
B45: tv=tt/2 | C45: For a 1/4-1/2-1//4 trap move, If distance= | D45: 58624 | F45: accel dist: | G45: =D45/6 -> 9770.666667 | H45: vel dist: | I45: =2*D45/3 -> 39082.66667
B46: ta=tt/3 | C46: In a move time of | D46: 1 | E46: sec's | F46: accel time: | G46: =D46/4 -> 0.25 | H46: vel time: | I46: =D46/2 -> 0.5
B47: td=tt/3 | C47: VT= | D47: =I47*$G$12 -> 640330.4107 | F47: accel (cnts/sec^2): | G47: =2*G45/G46^2 -> 312661.3333 | H47: vel (cnts/sec): | I47: =I45/I46 -> 78165.33333
B48: dv=2d/3 | C48: ADT= | D48: =G47/$H$10 -> 320.1652053
B49: da=d/6
B50: dd=d/6

Sheet Status Words
A5: 0 | N5: =E11 -> 1
C6: Status Word Overview
C7: The commands RW (value) Note: See Sheet tabs at bottom for more!
C8: are good for troubleshooting and error checking.
C9: Enter the 16 Bit value in the yellow box below to see results.
C10: Status Word : | E10: 0
B11: =E10 -> 0 | C11: =CONCATENATE("Enter Value for RW(",E10,"):") -> Enter Value for RW(0): | E11: 1 | F11: Bit | G11: To Clear | H11: Value | I11: Status | J11: Bit | K11: To read | L11: Assign | M11: Related Commands
B12: =B11 -> 0 | C12: Drive Ready | H12: 1 | I12: =IF(O12,"Asserted"," ") -> Asserted | J12: 0 | K12: =CONCATENATE("RB(",B12,",",J12,")") -> RB(0,0) | L12: =CONCATENATE("=B(",B12,",",J12,")") -> =B(0,0) | N12: =E11/2 -> 0.5 | O12: =IF(MOD(E11,2)>=1,1,0) -> 1
B13: =B12 -> 0 | C13: Bo: Motor is off (indicator.) | F13: Bo | H13: =H12*2 -> 2 | I13: =IF(O13,"Asserted"," ") ->  | J13: 1 | K13: =CONCATENATE("RB(",B13,",",J13,")") -> RB(0,1) | L13: =CONCATENATE("=B(",B13,",",J13,")") -> =B(0,1) | M13: OFF | N13: =N12/2 -> 0.25 | O13: =IF(MOD(N12,2)>=1,1,0) -> 0
B14: 0 | C14: Bt: Trajectory in progress (indicator.) | F14: Bt | H14: =H13*2 -> 4 | J14: 2 | K14: RB(0,2) | L14: =B(0,2) | M14: G, TWAIT, GS, TSWAIT | N14: =N13/2 -> 0.125 | O14: =IF(MOD(N13,2)>=1,1,0) -> 0
B15: 0 | C15: Servo Bus Voltage Fault | G15: ZS | H15: 8 | J15: 3 | K15: RB(0,3) | L15: =B(0,3) | N15: 0.0625 | O15: 0
B16: 0 | C16: Peak Over-current occurred | F16: Ba | G16: Za, ZS | H16: 16 | J16: 4 | K16: RB(0,4) | L16: =B(0,4) | N16: 0.03125 | O16: 0
B17: =B16 -> 0 | C17: Excessive Temperature Real Time | F17: Bh | G17: ZS | H17: =H16*2 -> 32 | J17: 5 | K17: RB(0,5) | L17: =B(0,5) | M17: TH={temp in degrees C} (85Deg. Default) | N17: =N16/2 -> 0.015625 | O17: =IF(MOD(N16,2)>=1,1,0) -> 0
A18: ` | B18: 0 | C18: Excessive Position Error Fault | F18: Be | G18: Ze, ZS | H18: 64 | J18: 6 | K18: RB(0,6) | L18: =B(0,6) | M18: EA, REA, EL, EL={value in encoder counts} | N18: 0.0078125 | O18: 0 | Q18: Fault Action Control
B19: 0 | C19: Velocity Limit Fault | F19: Bv | G19: Zv | H19: 128 | J19: 7 | K19: RB(0,7) | L19: =B(0,7) | M19: VL={value in RPM}, RVL | N19: 0.00390625 | O19: 0
B20: 0 | C20: Real-time temperature limit | H20: 256 | J20: 8 | K20: RB(0,8) | L20: =B(0,8) | N20: 0.001953125 | O20: 0 | Q20: FSA({fault type #}, {fault action#})
B21: 0 | C21: Derivitive Error Limit (de/Dt) Fault | G21: ZS | H21: 512 | J21: 9 | K21: RB(0,9) | L21: =B(0,9) | M21: RDEL, DEL={value in velocity units} | N21: 0.0009765625 | O21: 0 | Q21: Fault type: the type of fault to set action for:
B22: 0 | C22: Hardware Limit Positive Enabled | H22: 1024 | J22: 10 | K22: RB(0,10) | L22: =B(0,10) | M22: EILP(2), EIGN(2), EIGN(W,2), FSA() | N22: 0.00048828125 | O22: 0 | R22: 0 – All types of drive faults.
B23: 0 | C23: Hardware Limit Negative Enabled | H23: 2048 | J23: 11 | K23: RB(0,11) | L23: =B(0,11) | M23: EILN(3), EIGN(3), EIGN(W,3), FSA() | N23: 0.000244140625 | O23: 0 | R23: 1 – Over travel limits.
B24: 0 | C24: Histroical Right Limit (+ or Positive) | F24: Br | G24: Zr, ZS | H24: 4096 | J24: 12 | K24: RB(0,12) | L24: =B(0,12) | M24: EILP(2), EIGN(2), EIGN(W,2), FSA() | N24: 0.0001220703125 | O24: 0 | Q24: Fault Action: (response to above listed faults)
B25: 0 | C25: Histroical Left Limit (- or Negative) | F25: Bl | G25: Zl, ZS | H25: 8192 | J25: 13 | K25: RB(0,13) | L25: =B(0,13) | M25: EILN(3), EIGN(3), EIGN(W,3), FSA() | N25: 6.103515625e-05 | O25: 0 | R25: 0 - default: dynamically brake
B26: 0 | C26: Right ( + or Positive) Limit Asserted | F26: Bp | G26: Za, ZS | H26: 16384 | J26: 14 | K26: RB(0,14) | L26: =B(0,14) | M26: RIN(2) | N26: 3.051757812e-05 | O26: 0 | R26: 1 - Servo off: Freewheel
B27: 0 | C27: Left Limit ( - or Negative) Asserted | F27: Bm | G27: ZS | H27: 32768 | J27: 15 | K27: RB(0,15) | L27: =B(0,15) | M27: RIN(3) | N27: 1.525878906e-05 | O27: 0 | R27: 2 - Decelerate to stop
C29: Status Word : | E29: =E10+1 -> 1
B30: =E29 -> 1 | C30: =CONCATENATE("Enter Value for RW(",E29,"):") -> Enter Value for RW(1): | E30: 256 | F30: Bit | G30: To Clear | H30: Value | I30: Status | J30: Bit | K30: To read | L30: Assign | M30: Related Commands
B31: =B30 -> 1 | C31: Rise Capture Encoder(0) Armed | H31: 1 | I31: =IF(O31,"Asserted"," ") ->  | J31: 0 | K31: =CONCATENATE("RB(",B31,",",J31,")") -> RB(1,0) | L31: =CONCATENATE("=B(",B31,",",J31,")") -> =B(1,0) | M31: Ai(0 | N31: =E30/2 -> 128 | O31: =IF(MOD(E30,2)>=1,1,0) -> 0
B32: =B31 -> 1 | C32: Fall Capture Encoder(0) Armed | H32: =H31*2 -> 2 | I32: =IF(O32,"Asserted"," ") ->  | J32: 1 | K32: =CONCATENATE("RB(",B32,",",J32,")") -> RB(1,1) | L32: =CONCATENATE("=B(",B32,",",J32,")") -> =B(1,1) | M32: Aj(0) | N32: =N31/2 -> 64 | O32: =IF(MOD(N31,2)>=1,1,0) -> 0
B33: 1 | C33: Rising edge captured ENC(0) (historical bit.) | F33: Bi(0) | G33: ZS | H33: =H32*2 -> 4 | J33: 2 | K33: RB(1,2) | L33: =B(1,2) | N33: =N32/2 -> 32 | O33: =IF(MOD(N32,2)>=1,1,0) -> 0
B34: 1 | C34: Falling edge captured ENC(0) (historical bit.) | F34: Bj(0) | G34: ZS | H34: 8 | J34: 3 | K34: RB(1,3) | L34: =B(1,3) | N34: 16 | O34: 0
B35: 1 | C35: Rise Capture Encoder(1) Armed | H35: 16 | J35: 4 | K35: RB(1,4) | L35: =B(1,4) | M35: Ai(1) | N35: 8 | O35: 0
B36: 1 | C36: Fall Capture Encoder(1) Armed | H36: 32 | J36: 5 | K36: RB(1,5) | L36: =B(1,5) | M36: Aj(1) | N36: 4 | O36: 0
B37: 1 | C37: Rising edge captured ENC(1) (historical bit.) | F37: Bi(1) | H37: 64 | J37: 6 | K37: RB(1,6) | L37: =B(1,6) | N37: 2 | O37: 0
B38: 1 | C38: Falling edge captured ENC(1) (historical bit.) | F38: Bj(1) | H38: 128 | J38: 7 | K38: RB(1,7) | L38: =B(1,7) | N38: 1 | O38: 0 | Q38: Travel Limit Control
B39: 1 | C39: Capture input state 0 (indicator.) | F39: Bx(0) | G39: ZS | H39: 256 | I39: Asserted | J39: 8 | K39: RB(1,8) | L39: =B(1,8) | N39: 0.5 | O39: 1
B40: 1 | C40: Capture input state 1 (indicator.) | F40: Bx(1) | G40: ZS | H40: 512 | J40: 9 | K40: RB(1,9) | L40: =B(1,9) | N40: 0.25 | O40: 0 | Q40: SLE | R40: Enable soft limits
B41: 1 | C41: Software Travle Limits Enabled | H41: 1024 | J41: 10 | K41: RB(1,10) | L41: =B(1,10) | M41: SLE, SLD, SLM(value) | N41: 0.125 | O41: 0 | Q41: SLD | R41: Disable soft limts (Default)
B42: 1 | C42: Soft limit mode (indicator.) : 0-Don’t Stop. 1-Cause Fault. Default is 1 | H42: 2048 | J42: 11 | K42: RB(1,11) | L42: =B(1,11) | M42: SLM(value) | N42: 0.0625 | O42: 0 | Q42: SLM(0): limit triggers flag, but not cause fault.
B43: 1 | C43: Historical positive software over travel limit | F43: Brs | G43: Zrs | H43: 4096 | J43: 12 | K43: RB(1,12) | L43: =B(1,12) | M43: SLP= value, RSLP | N43: 0.03125 | O43: 0 | Q43: SLM(1):limits trigger flags and cause a faults. (default mode)
B44: 1 | C44: Historical negative software over travel limit | F44: Bls | G44: Zls | H44: 8192 | J44: 13 | K44: RB(1,13) | L44: =B(1,13) | M44: SLN= value, RSLN | N44: 0.015625 | O44: 0
B45: 1 | C45: Real time positive soft limit (indicator.) | F45: Bps | H45: 16384 | J45: 14 | K45: RB(1,14) | L45: =B(1,14) | M45: RBps | N45: 0.0078125 | O45: 0
B46: 1 | C46: Real time negative soft limit (indicator.) | F46: Bms | H46: 32768 | J46: 15 | K46: RB(1,15) | L46: =B(1,15) | M46: RBms | N46: 0.00390625 | O46: 0
C48: Status Word : | E48: =E29+1 -> 2
B49: =E48 -> 2 | C49: =CONCATENATE("Enter Value for RW(",E48,"):") -> Enter Value for RW(2): | E49: 128 | F49: Bit | G49: To Clear | H49: Value | I49: Status | J49: Bit | K49: To read | L49: Assign | M49: Related Commands
B50: =B49 -> 2 | C50: Error on Communications Channel 0 | H50: 1 | I50: =IF(O50,"Asserted"," ") ->  | J50: 0 | K50: =CONCATENATE("RB(",B50,",",J50,")") -> RB(2,0) | L50: =CONCATENATE("=B(",B50,",",J50,")") -> =B(2,0) | M50: RCHN(0), OCHN( ), CCHN( ), BAUD(0)= | N50: =E49/2 -> 64 | O50: =IF(MOD(E49,2)>=1,1,0) -> 0
B51: =B50 -> 2 | C51: Error on Communications Channel 1 | H51: =H50*2 -> 2 | I51: =IF(O51,"Asserted"," ") ->  | J51: 1 | K51: =CONCATENATE("RB(",B51,",",J51,")") -> RB(2,1) | L51: =CONCATENATE("=B(",B51,",",J51,")") -> =B(2,1) | M51: RCHN(1), OCHN( ), CCHN( ),, BAUD(1)= | N51: =N50/2 -> 32 | O51: =IF(MOD(N50,2)>=1,1,0) -> 0
B52: 2 | C52: USB Error | H52: =H51*2 -> 4 | J52: 2 | K52: RB(2,2) | L52: =B(2,2) | N52: =N51/2 -> 16 | O52: =IF(MOD(N51,2)>=1,1,0) -> 0
B53: 2 | C53: Reserved 3 | H53: 8 | J53: 3 | K53: RB(2,3) | L53: =B(2,3) | N53: 8 | O53: 0
B54: 2 | C54: CAN Port Error | H54: 16 | J54: 4 | K54: RB(2,4) | L54: =B(2,4) | M54: RCAN, CBAUD, CADDR | N54: 4 | O54: 0
B55: 2 | C55: Reserved 5 | H55: 32 | J55: 5 | K55: RB(2,5) | L55: =B(2,5) | N55: 2 | O55: 0
B56: 2 | C56: Ethernet Error | H56: 64 | J56: 6 | K56: RB(2,6) | L56: =B(2,6) | N56: 1 | O56: 0
B57: 2 | C57: I2C Running | H57: 128 | I57: Asserted | J57: 7 | K57: RB(2,7) | L57: =B(2,7) | M57: PRINT1( ), GETCHR1, OCHN( ), CCHN( ) | N57: 0.5 | O57: 1
B58: 2 | C58: Watchdog Event | H58: 256 | J58: 8 | K58: RB(2,8) | L58: =B(2,8) | N58: 0.25 | O58: 0
B59: 2 | C59: ADB Bad Checksum | H59: 512 | J59: 9 | K59: RB(2,9) | L59: =B(2,9) | N59: 0.125 | O59: 0
B60: 2 | C60: Program Running | H60: 1024 | J60: 10 | K60: RB(2,10) | L60: =B(2,10) | M60: RUN, RUN?, PAUSE, RESUME, END, GOTO, GOSUB, RETURN, Z | N60: 0.0625 | O60: 0
B61: 2 | C61: Trace In Progress | H61: 2048 | J61: 11 | K61: RB(2,11) | L61: =B(2,11) | N61: 0.03125 | O61: 0
B62: 2 | C62: EE Write Buffer Overflow | H62: 4096 | J62: 12 | K62: RB(2,12) | L62: =B(2,12) | M62: EPTR=, VST( ), VLD( ) | N62: 0.015625 | O62: 0
B63: 2 | C63: EE Busy | H63: 8192 | J63: 13 | K63: RB(2,13) | L63: =B(2,13) | M63: EPTR=, VST( ), VLD( ) | N63: 0.0078125 | O63: 0
B64: 2 | C64: Command Syntax Error | F64: Bs | G64: ZS | H64: 16384 | J64: 14 | K64: RB(2,14) | L64: =B(2,14) | M64: RERRC, =ERRC, REERW, =EERW | N64: 0.00390625 | O64: 0
B65: 2 | C65: Program Checksum Error | F65: Bk | G65: ZS | H65: 32768 | J65: 15 | K65: RB(2,15) | L65: =B(2,15) | N65: 0.001953125 | O65: 0
C67: Status Word : | E67: =E48+1 -> 3
B68: =E67 -> 3 | C68: =CONCATENATE("Enter Value for RW(",E67,"):") -> Enter Value for RW(3): | E68: 0 | F68: Bit | G68: To Clear | H68: Value | I68: Status | J68: Bit | K68: To read | L68: Assign | M68: Related Commands
B69: =B68 -> 3 | C69: Reserved 0 | H69: 1 | I69: =IF(O69,"Asserted"," ") ->  | J69: 0 | K69: =CONCATENATE("RB(",B69,",",J69,")") -> RB(3,0) | L69: =CONCATENATE("=B(",B69,",",J69,")") -> =B(3,0) | N69: =E68/2 -> 0 | O69: =IF(MOD(E68,2)>=1,1,0) -> 0
B70: =B69 -> 3 | C70: Torque Saturation | H70: =H69*2 -> 2 | I70: =IF(O70,"Asserted"," ") ->  | J70: 1 | K70: =CONCATENATE("RB(",B70,",",J70,")") -> RB(3,1) | L70: =CONCATENATE("=B(",B70,",",J70,")") -> =B(3,1) | N70: =N69/2 -> 0 | O70: =IF(MOD(N69,2)>=1,1,0) -> 0
B71: 3 | C71: Voltage Saturation | H71: =H70*2 -> 4 | J71: 2 | K71: RB(3,2) | L71: =B(3,2) | N71: =N70/2 -> 0 | O71: =IF(MOD(N70,2)>=1,1,0) -> 0
B72: 3 | C72: Wraparound Occurred | H72: 8 | J72: 3 | K72: RB(3,3) | L72: =B(3,3) | N72: 0 | O72: 0
B73: 3 | C73: KG Enabled | H73: 16 | J73: 4 | K73: RB(3,4) | L73: =B(3,4) | M73: KG= | N73: 0 | O73: 0
B74: 3 | C74: Velocity Direction | H74: 32 | J74: 5 | K74: RB(3,5) | L74: =B(3,5) | M74: VT= | N74: 0 | O74: 0
B75: 3 | C75: Torque Direction | H75: 64 | J75: 6 | K75: RB(3,6) | L75: =B(3,6) | N75: 0 | O75: 0
B76: 3 | C76: I/O Fault Latch | H76: 128 | J76: 7 | K76: RB(3,7) | L76: =B(3,7) | N76: 0 | O76: 0
B77: 3 | C77: Relative Position Mode | H77: 256 | J77: 8 | K77: RB(3,8) | L77: =B(3,8) | N77: 0 | O77: 0
B78: 3 | C78: Reserved 9 | H78: 512 | J78: 9 | K78: RB(3,9) | L78: =B(3,9) | M78: X, X(1), X(2), MFSDC( ) | N78: 0 | O78: 0
B79: 3 | C79: Peak Current Saturation | H79: 1024 | J79: 10 | K79: RB(3,10) | L79: =B(3,10) | N79: 0 | O79: 0
B80: 3 | C80: Modulo Rollover | H80: 2048 | J80: 11 | K80: RB(3,11) | L80: =B(3,11) | M80: PML, PMA | N80: 0 | O80: 0
B81: 3 | C81: Brake Asserted | H81: 4096 | J81: 12 | K81: RB(3,12) | L81: =B(3,12) | M81: BRKSRV, BRKTRJ, BRKENG, BRKDIS, EOBK( ) | N81: 0 | O81: 0
B82: 3 | C82: Brake OK | H82: 8192 | J82: 13 | K82: RB(3,13) | L82: =B(3,13) | N82: 0 | O82: 0
B83: 3 | C83: External Go Enabled | H83: 16384 | J83: 14 | K83: RB(3,14) | L83: =B(3,14) | M83: EISM(6) | N83: 0 | O83: 0
B84: 3 | C84: Velocity Target Reached | H84: 32768 | J84: 15 | K84: RB(3,15) | L84: =B(3,15) | M84: VT= | N84: 0 | O84: 0
C86: Status Word : | E86: =E67+1 -> 4
B87: =E86 -> 4 | C87: =CONCATENATE("Enter Value for RW(",E86,"):") -> Enter Value for RW(4): | E87: 0 | F87: Bit | G87: To Clear | H87: Value | I87: Status | J87: Bit | K87: To read | L87: Assign | M87: Related Commands
B88: =B87 -> 4 | C88: Timer 0 | H88: 1 | I88: =IF(O88,"Asserted"," ") ->  | J88: 0 | K88: =CONCATENATE("RB(",B88,",",J88,")") -> RB(4,0) | L88: =CONCATENATE("=B(",B88,",",J88,")") -> =B(4,0) | M88: TMR(0,#) | N88: =E87/2 -> 0 | O88: =IF(MOD(E87,2)>=1,1,0) -> 0
B89: =B88 -> 4 | C89: Timer 1 | H89: =H88*2 -> 2 | I89: =IF(O89,"Asserted"," ") ->  | J89: 1 | K89: =CONCATENATE("RB(",B89,",",J89,")") -> RB(4,1) | L89: =CONCATENATE("=B(",B89,",",J89,")") -> =B(4,1) | M89: TMR(1,#) | N89: =N88/2 -> 0 | O89: =IF(MOD(N88,2)>=1,1,0) -> 0
B90: 4 | C90: Timer 2 | H90: =H89*2 -> 4 | J90: 2 | K90: RB(4,2) | L90: =B(4,2) | M90: TMR(2,#) | N90: =N89/2 -> 0 | O90: =IF(MOD(N89,2)>=1,1,0) -> 0
B91: 4 | C91: Timer 3 | H91: 8 | J91: 3 | K91: RB(4,3) | L91: =B(4,3) | M91: TMR(3,#) | N91: 0 | O91: 0
B92: 4 | C92: Reserved | H92: 16 | J92: 4 | K92: RB(4,4) | L92: =B(4,4) | N92: 0 | O92: 0
B93: 4 | C93: Reserved | H93: 32 | J93: 5 | K93: RB(4,5) | L93: =B(4,5) | N93: 0 | O93: 0
B94: 4 | C94: Reserved | H94: 64 | J94: 6 | K94: RB(4,6) | L94: =B(4,6) | N94: 0 | O94: 0
B95: 4 | C95: Reserved | H95: 128 | J95: 7 | K95: RB(4,7) | L95: =B(4,7) | N95: 0 | O95: 0
B96: 4 | C96: Reserved | H96: 256 | J96: 8 | K96: RB(4,8) | L96: =B(4,8) | N96: 0 | O96: 0
B97: 4 | C97: Reserved | H97: 512 | J97: 9 | K97: RB(4,9) | L97: =B(4,9) | N97: 0 | O97: 0
B98: 4 | C98: Reserved | H98: 1024 | J98: 10 | K98: RB(4,10) | L98: =B(4,10) | N98: 0 | O98: 0
B99: 4 | C99: Reserved | H99: 2048 | J99: 11 | K99: RB(4,11) | L99: =B(4,11) | N99: 0 | O99: 0
B100: 4 | C100: Reserved | H100: 4096 | J100: 12 | K100: RB(4,12) | L100: =B(4,12) | N100: 0 | O100: 0
B101: 4 | C101: Reserved | H101: 8192 | J101: 13 | K101: RB(4,13) | L101: =B(4,13) | N101: 0 | O101: 0
B102: 4 | C102: Reserved | H102: 16384 | J102: 14 | K102: RB(4,14) | L102: =B(4,14) | N102: 0 | O102: 0
B103: 4 | C103: Reserved | H103: 32768 | J103: 15 | K103: RB(4,15) | L103: =B(4,15) | N103: 0 | O103: 0
C105: Status Word : | E105: =E86+1 -> 5
B106: =E105 -> 5 | C106: =CONCATENATE("Enter Value for RW(",E105,"):") -> Enter Value for RW(5): | E106: 128 | F106: Bit | G106: To Clear | H106: Value | I106: Status | J106: Bit | K106: To read | L106: Assign | M106: Related Commands
B107: =B106 -> 5 | C107: Interrupt 0 enabled | H107: 1 | I107: =IF(O107,"Asserted"," ") ->  | J107: 0 | K107: =CONCATENATE("RB(",B107,",",J107,")") -> RB(5,0) | L107: =CONCATENATE("=B(",B107,",",J107,")") -> =B(5,0) | M107: ITR( ), EITR( ), ITRE, ITRD | N107: =E106/2 -> 64 | O107: =IF(MOD(E106,2)>=1,1,0) -> 0
B108: =B107 -> 5 | C108: Interrupt 1 enabled | H108: =H107*2 -> 2 | I108: =IF(O108,"Asserted"," ") ->  | J108: 1 | K108: =CONCATENATE("RB(",B108,",",J108,")") -> RB(5,1) | L108: =CONCATENATE("=B(",B108,",",J108,")") -> =B(5,1) | M108: ITR( ), EITR( ), ITRE, ITRD | N108: =N107/2 -> 32 | O108: =IF(MOD(N107,2)>=1,1,0) -> 0
B109: 5 | C109: Interrupt 2 enabled | H109: =H108*2 -> 4 | J109: 2 | K109: RB(5,2) | L109: =B(5,2) | M109: ITR( ), EITR( ), ITRE, ITRD | N109: =N108/2 -> 16 | O109: =IF(MOD(N108,2)>=1,1,0) -> 0
B110: 5 | C110: Interrupt 3 enabled | H110: 8 | J110: 3 | K110: RB(5,3) | L110: =B(5,3) | M110: ITR( ), EITR( ), ITRE, ITRD | N110: 8 | O110: 0
B111: 5 | C111: Interrupt 4 enabled | H111: 16 | J111: 4 | K111: RB(5,4) | L111: =B(5,4) | M111: ITR( ), EITR( ), ITRE, ITRD | N111: 4 | O111: 0
B112: 5 | C112: Interrupt 5 enabled | H112: 32 | J112: 5 | K112: RB(5,5) | L112: =B(5,5) | M112: ITR( ), EITR( ), ITRE, ITRD | N112: 2 | O112: 0
B113: 5 | C113: Interrupt 6 enabled | H113: 64 | J113: 6 | K113: RB(5,6) | L113: =B(5,6) | M113: ITR( ), EITR( ), ITRE, ITRD | N113: 1 | O113: 0
B114: 5 | C114: Interrupt 7 enabled | H114: 128 | I114: Asserted | J114: 7 | K114: RB(5,7) | L114: =B(5,7) | M114: ITR( ), EITR( ), ITRE, ITRD | N114: 0.5 | O114: 1
B115: 5 | C115: Reserved | H115: 256 | J115: 8 | K115: RB(5,8) | L115: =B(5,8) | N115: 0.25 | O115: 0
B116: 5 | C116: Reserved | H116: 512 | J116: 9 | K116: RB(5,9) | L116: =B(5,9) | N116: 0.125 | O116: 0
B117: 5 | C117: Reserved | H117: 1024 | J117: 10 | K117: RB(5,10) | L117: =B(5,10) | N117: 0.0625 | O117: 0
B118: 5 | C118: Reserved | H118: 2048 | J118: 11 | K118: RB(5,11) | L118: =B(5,11) | N118: 0.03125 | O118: 0
B119: 5 | C119: Reserved | H119: 4096 | J119: 12 | K119: RB(5,12) | L119: =B(5,12) | N119: 0.015625 | O119: 0
B120: 5 | C120: Reserved | H120: 8192 | J120: 13 | K120: RB(5,13) | L120: =B(5,13) | N120: 0.0078125 | O120: 0
B121: 5 | C121: Reserved | H121: 16384 | J121: 14 | K121: RB(5,14) | L121: =B(5,14) | N121: 0.00390625 | O121: 0
B122: 5 | C122: Interrupts Enabled | H122: 32768 | J122: 15 | K122: RB(5,15) | L122: =B(5,15) | M122: ITRE, ITRD | N122: 0.001953125 | O122: 0
C124: Status Word : | E124: =E105+1 -> 6
B125: =E124 -> 6 | C125: =CONCATENATE("Enter Value for RW(",E124,"):") -> Enter Value for RW(6): | E125: 0 | F125: Bit | G125: To Clear | H125: Value | I125: Status | J125: Bit | K125: To read | L125: Assign | M125: Related Commands
B126: =B125 -> 6 | C126: Trap Mode | H126: 1 | I126: =IF(O126,"Asserted"," ") ->  | J126: 0 | K126: =CONCATENATE("RB(",B126,",",J126,")") -> RB(6,0) | L126: =CONCATENATE("=B(",B126,",",J126,")") -> =B(6,0) | M126: MDT | N126: =E125/2 -> 0 | O126: =IF(MOD(E125,2)>=1,1,0) -> 0
B127: =B126 -> 6 | C127: Enhanced Trap Mode | H127: =H126*2 -> 2 | I127: =IF(O127,"Asserted"," ") ->  | J127: 1 | K127: =CONCATENATE("RB(",B127,",",J127,")") -> RB(6,1) | L127: =CONCATENATE("=B(",B127,",",J127,")") -> =B(6,1) | M127: MDE | N127: =N126/2 -> 0 | O127: =IF(MOD(N126,2)>=1,1,0) -> 0
B128: 6 | C128: Sine Mode | H128: =H127*2 -> 4 | J128: 2 | K128: RB(6,2) | L128: =B(6,2) | M128: MDS | N128: =N127/2 -> 0 | O128: =IF(MOD(N127,2)>=1,1,0) -> 0
B129: 6 | C129: Vector Control | H129: 8 | J129: 3 | K129: RB(6,3) | L129: =B(6,3) | N129: 0 | O129: 0
B130: 6 | C130: Reserved 4 | H130: 16 | J130: 4 | K130: RB(6,4) | L130: =B(6,4) | N130: 0 | O130: 0
B131: 6 | C131: Reserved 5 | H131: 32 | J131: 5 | K131: RB(6,5) | L131: =B(6,5) | N131: 0 | O131: 0
B132: 6 | C132: Reserved 6 | H132: 64 | J132: 6 | K132: RB(6,6) | L132: =B(6,6) | N132: 0 | O132: 0
B133: 6 | C133: Reserved 7 | H133: 128 | J133: 7 | K133: RB(6,7) | L133: =B(6,7) | N133: 0 | O133: 0
B134: 6 | C134: Angle Match | H134: 256 | J134: 8 | K134: RB(6,8) | L134: =B(6,8) | N134: 0 | O134: 0
B135: 6 | C135: TOB Enabled | H135: 512 | J135: 9 | K135: RB(6,9) | L135: =B(6,9) | M135: MDE, MDB | N135: 0 | O135: 0
B136: 6 | C136: Inverted | H136: 1024 | J136: 10 | K136: RB(6,10) | L136: =B(6,10) | M136: MINV( ) | N136: 0 | O136: 0
B137: 6 | C137: MTB Active | H137: 2048 | J137: 11 | K137: RB(6,11) | L137: =B(6,11) | M137: MTB, FSA( ) | N137: 0 | O137: 0
B138: 6 | C138: ABS battery fault | H138: 4096 | J138: 12 | K138: RB(6,12) | L138: =B(6,12) | N138: 0 | O138: 0
B139: 6 | C139: Low Bus Voltage | H139: 8192 | J139: 13 | K139: RB(6,13) | L139: =B(6,13) | N139: 0 | O139: 0
B140: 6 | C140: High Bus Voltage | H140: 16384 | J140: 14 | K140: RB(6,14) | L140: =B(6,14) | N140: 0 | O140: 0
B141: 6 | C141: Regen Active | H141: 32768 | J141: 15 | K141: RB(6,15) | L141: =B(6,15) | N141: 0 | O141: 0
C143: Status Word : | E143: =E124+1 -> 7
B144: =E143 -> 7 | C144: =CONCATENATE("Enter Value for RW(",E143,"):") -> Enter Value for RW(7): | E144: 0 | F144: Bit | G144: To Clear | H144: Value | I144: Status | J144: Bit | K144: To read | L144: Assign | M144: Related Commands
B145: =B144 -> 7 | C145: TG1 In Progress | H145: 1 | I145: =IF(O145,"Asserted"," ") ->  | J145: 0 | K145: =CONCATENATE("RB(",B145,",",J145,")") -> RB(7,0) | L145: =CONCATENATE("=B(",B145,",",J145,")") -> =B(7,0) | M145: G(1), X(1), MP(1), MV(1) | N145: =E144/2 -> 0 | O145: =IF(MOD(E144,2)>=1,1,0) -> 0
B146: =B145 -> 7 | C146: TG1 Accel/Ascend | H146: =H145*2 -> 2 | I146: =IF(O146,"Asserted"," ") ->  | J146: 1 | K146: =CONCATENATE("RB(",B146,",",J146,")") -> RB(7,1) | L146: =CONCATENATE("=B(",B146,",",J146,")") -> =B(7,1) | M146: G(1), X(1), MP(1), MV(1) | N146: =N145/2 -> 0 | O146: =IF(MOD(N145,2)>=1,1,0) -> 0
B147: 7 | C147: TG1 Slewing | H147: =H146*2 -> 4 | J147: 2 | K147: RB(7,2) | L147: =B(7,2) | M147: G(1), X(1), MP(1), MV(1) | N147: =N146/2 -> 0 | O147: =IF(MOD(N146,2)>=1,1,0) -> 0
B148: 7 | C148: TG1 Decel/Descend | H148: 8 | J148: 3 | K148: RB(7,3) | L148: =B(7,3) | M148: G(1), X(1), MP(1), MV(1) | N148: 0 | O148: 0
B149: 7 | C149: TG1 Reserved/Dwell | H149: 16 | J149: 4 | K149: RB(7,4) | L149: =B(7,4) | N149: 0 | O149: 0
B150: 7 | C150: Reserved 5 | H150: 32 | J150: 5 | K150: RB(7,5) | L150: =B(7,5) | N150: 0 | O150: 0
B151: 7 | C151: Reserved 6 | H151: 64 | J151: 6 | K151: RB(7,6) | L151: =B(7,6) | N151: 0 | O151: 0
B152: 7 | C152: Reserved 7 | H152: 128 | J152: 7 | K152: RB(7,7) | L152: =B(7,7) | N152: 0 | O152: 0
B153: 7 | C153: TG2 In Progress | H153: 256 | J153: 8 | K153: RB(7,8) | L153: =B(7,8) | M153: G(2), X(2), MFR(2), MC(2), MFSDC( ), MFSLEW( ) | N153: 0 | O153: 0
B154: 7 | C154: TG2 Accel/Ascend | H154: 512 | J154: 9 | K154: RB(7,9) | L154: =B(7,9) | M154: G(2), X(2), MFR(2), MC(2), MFSDC( ), MFSLEW( ) | N154: 0 | O154: 0
B155: 7 | C155: TG2 Slewing | H155: 1024 | J155: 10 | K155: RB(7,10) | L155: =B(7,10) | M155: G(2), X(2), MFR(2), MC(2), MFSDC( ), MFSLEW( ) | N155: 0 | O155: 0
B156: 7 | C156: TG2 Decel/Descend | H156: 2048 | J156: 11 | K156: RB(7,11) | L156: =B(7,11) | M156: G(2), X(2), MFR(2), MC(2), MFSDC( ), MFSLEW( ) | N156: 0 | O156: 0
B157: 7 | C157: TG2 Dwell (or higher Dwell in progress) | H157: 4096 | J157: 12 | K157: RB(7,12) | L157: =B(7,12) | M157: G(2), X(2), MFR(2), MC(2), MFSDC( ), MFSLEW( ), MFH, MFHTP | N157: 0 | O157: 0
B158: 7 | C158: Traverse Direction, 0:Fwd, 1:Rev | H158: 8192 | J158: 13 | K158: RB(7,13) | L158: =B(7,13) | M158: MFCTP() | N158: 0 | O158: 0
B159: 7 | C159: Traverse Lower Dwell in Progress | H159: 16384 | J159: 14 | K159: RB(7,14) | L159: =B(7,14) | M159: MFSCD(), MFL, MFLTP | N159: 0 | O159: 0
B160: 7 | C160: TS WAIT | H160: 32768 | J160: 15 | K160: RB(7,15) | L160: =B(7,15) | M160: PTS( ), PTRS( ), GS, X, TSWAIT | N160: 0 | O160: 0
C162: Status Word : | E162: =E143+1 -> 8
B163: =E162 -> 8 | C163: =CONCATENATE("Enter Value for RW(",E162,"):") -> Enter Value for RW(8): | E163: 256 | F163: Bit | G163: To Clear | H163: Value | I163: Status | J163: Bit | K163: To read | L163: Assign | M163: Related Commands
B164: =B163 -> 8 | C164: Cam User bit 0 | H164: 1 | I164: =IF(O164,"Asserted"," ") ->  | J164: 0 | K164: =CONCATENATE("RB(",B164,",",J164,")") -> RB(8,0) | L164: =CONCATENATE("=B(",B164,",",J164,")") -> =B(8,0) | M164: CTW( ) | N164: =E163/2 -> 128 | O164: =IF(MOD(E163,2)>=1,1,0) -> 0
B165: =B164 -> 8 | C165: Cam User bit 1 | H165: =H164*2 -> 2 | I165: =IF(O165,"Asserted"," ") ->  | J165: 1 | K165: =CONCATENATE("RB(",B165,",",J165,")") -> RB(8,1) | L165: =CONCATENATE("=B(",B165,",",J165,")") -> =B(8,1) | M165: CTW( ) | N165: =N164/2 -> 64 | O165: =IF(MOD(N164,2)>=1,1,0) -> 0
B166: 8 | C166: Cam User bit 2 | H166: =H165*2 -> 4 | J166: 2 | K166: RB(8,2) | L166: =B(8,2) | M166: CTW( ) | N166: =N165/2 -> 32 | O166: =IF(MOD(N165,2)>=1,1,0) -> 0
B167: 8 | C167: Cam User bit 3 | H167: 8 | J167: 3 | K167: RB(8,3) | L167: =B(8,3) | M167: CTW( ) | N167: 16 | O167: 0
B168: 8 | C168: Cam User bit 4 | H168: 16 | J168: 4 | K168: RB(8,4) | L168: =B(8,4) | M168: CTW( ) | N168: 8 | O168: 0
B169: 8 | C169: Cam User bit 5 | H169: 32 | J169: 5 | K169: RB(8,5) | L169: =B(8,5) | M169: CTW( ) | N169: 4 | O169: 0
B170: 8 | C170: Cam Mode 0 | H170: 64 | J170: 6 | K170: RB(8,6) | L170: =B(8,6) | M170: MCE( ) | N170: 2 | O170: 0
B171: 8 | C171: Cam Mode 1 | H171: 128 | J171: 7 | K171: RB(8,7) | L171: =B(8,7) | M171: MCE( ) | N171: 1 | O171: 0
B172: 8 | C172: IP User bit 0 | H172: 256 | I172: Asserted | J172: 8 | K172: RB(8,8) | L172: =B(8,8) | N172: 0.5 | O172: 1
B173: 8 | C173: IP User bit 1 | H173: 512 | J173: 9 | K173: RB(8,9) | L173: =B(8,9) | N173: 0.25 | O173: 0
B174: 8 | C174: IP User bit 2 | H174: 1024 | J174: 10 | K174: RB(8,10) | L174: =B(8,10) | N174: 0.125 | O174: 0
B175: 8 | C175: IP User bit 3 | H175: 2048 | J175: 11 | K175: RB(8,11) | L175: =B(8,11) | N175: 0.0625 | O175: 0
B176: 8 | C176: IP User bit 4 | H176: 4096 | J176: 12 | K176: RB(8,12) | L176: =B(8,12) | N176: 0.03125 | O176: 0
B177: 8 | C177: IP User bit 5 | H177: 8192 | J177: 13 | K177: RB(8,13) | L177: =B(8,13) | N177: 0.015625 | O177: 0
B178: 8 | C178: IP Mode 0 | H178: 16384 | J178: 14 | K178: RB(8,14) | L178: =B(8,14) | N178: 0.0078125 | O178: 0
B179: 8 | C179: IP Mode 1 | H179: 32768 | J179: 15 | K179: RB(8,15) | L179: =B(8,15) | N179: 0.00390625 | O179: 0
C181: Status Word : | E181: 12
B182: =E181 -> 12 | C182: =CONCATENATE("Enter Value for RW(",E181,"):") -> Enter Value for RW(12): | E182: 0 | F182: Bit | G182: To Clear | H182: Value | I182: Status | J182: Bit | K182: To read | L182: Assign | M182: Related Commands
B183: =B182 -> 12 | C183: User Bit 0 | H183: 1 | I183: =IF(O183,"Asserted"," ") ->  | J183: 0 | K183: =CONCATENATE("RB(",B183,",",J183,")") -> RB(12,0) | L183: =CONCATENATE("=B(",B183,",",J183,")") -> =B(12,0) | M183: US(0), UR(0) | N183: =E182/2 -> 0 | O183: =IF(MOD(E182,2)>=1,1,0) -> 0
B184: =B183 -> 12 | C184: 1 | H184: =H183*2 -> 2 | I184: =IF(O184,"Asserted"," ") ->  | J184: 1 | K184: =CONCATENATE("RB(",B184,",",J184,")") -> RB(12,1) | L184: =CONCATENATE("=B(",B184,",",J184,")") -> =B(12,1) | M184: =CONCATENATE("US(",C184,") , UR(",C184,")") -> US(1) , UR(1) | N184: =N183/2 -> 0 | O184: =IF(MOD(N183,2)>=1,1,0) -> 0
B185: 12 | C185: 2 | H185: =H184*2 -> 4 | J185: 2 | K185: RB(12,2) | L185: =B(12,2) | M185: =CONCATENATE("US(",C185,") , UR(",C185,")") -> US(2) , UR(2) | N185: =N184/2 -> 0 | O185: =IF(MOD(N184,2)>=1,1,0) -> 0
B186: 12 | C186: 3 | H186: 8 | J186: 3 | K186: RB(12,3) | L186: =B(12,3) | M186: US(3) , UR(3) | N186: 0 | O186: 0
B187: 12 | C187: 4 | H187: 16 | J187: 4 | K187: RB(12,4) | L187: =B(12,4) | M187: US(4) , UR(4) | N187: 0 | O187: 0
B188: 12 | C188: 5 | H188: 32 | J188: 5 | K188: RB(12,5) | L188: =B(12,5) | M188: US(5) , UR(5) | N188: 0 | O188: 0
B189: 12 | C189: 6 | H189: 64 | J189: 6 | K189: RB(12,6) | L189: =B(12,6) | M189: US(6) , UR(6) | N189: 0 | O189: 0
B190: 12 | C190: 7 | H190: 128 | J190: 7 | K190: RB(12,7) | L190: =B(12,7) | M190: US(7) , UR(7) | N190: 0 | O190: 0
B191: 12 | C191: 8 | H191: 256 | J191: 8 | K191: RB(12,8) | L191: =B(12,8) | M191: US(8) , UR(8) | N191: 0 | O191: 0
B192: 12 | C192: 9 | H192: 512 | J192: 9 | K192: RB(12,9) | L192: =B(12,9) | M192: US(9) , UR(9) | N192: 0 | O192: 0
B193: 12 | C193: 10 | H193: 1024 | J193: 10 | K193: RB(12,10) | L193: =B(12,10) | M193: US(10) , UR(10) | N193: 0 | O193: 0
B194: 12 | C194: 11 | H194: 2048 | J194: 11 | K194: RB(12,11) | L194: =B(12,11) | M194: US(11) , UR(11) | N194: 0 | O194: 0
B195: 12 | C195: 12 | H195: 4096 | J195: 12 | K195: RB(12,12) | L195: =B(12,12) | M195: US(12) , UR(12) | N195: 0 | O195: 0
B196: 12 | C196: 13 | H196: 8192 | J196: 13 | K196: RB(12,13) | L196: =B(12,13) | M196: US(13) , UR(13) | N196: 0 | O196: 0
B197: 12 | C197: 14 | H197: 16384 | J197: 14 | K197: RB(12,14) | L197: =B(12,14) | M197: US(14) , UR(14) | N197: 0 | O197: 0
B198: 12 | C198: User Bit 15 | H198: 32768 | J198: 15 | K198: RB(12,15) | L198: =B(12,15) | M198: US(15), UR(15) | N198: 0 | O198: 0
C200: Status Word : | E200: 13
B201: =E200 -> 13 | C201: =CONCATENATE("Enter Value for RW(",E200,"):") -> Enter Value for RW(13): | E201: 0 | F201: Bit | G201: To Clear | H201: Value | I201: Status | J201: Bit | K201: To read | L201: Assign | M201: Related Commands
B202: =B201 -> 13 | C202: 16 | H202: 1 | I202: =IF(O202,"Asserted"," ") ->  | J202: 0 | K202: =CONCATENATE("RB(",B202,",",J202,")") -> RB(13,0) | L202: =CONCATENATE("=B(",B202,",",J202,")") -> =B(13,0) | M202: US(16), UR(16) | N202: =E201/2 -> 0 | O202: =IF(MOD(E201,2)>=1,1,0) -> 0
B203: =B202 -> 13 | C203: 17 | H203: =H202*2 -> 2 | I203: =IF(O203,"Asserted"," ") ->  | J203: 1 | K203: =CONCATENATE("RB(",B203,",",J203,")") -> RB(13,1) | L203: =CONCATENATE("=B(",B203,",",J203,")") -> =B(13,1) | M203: =CONCATENATE("US(",C203,") , UR(",C203,")") -> US(17) , UR(17) | N203: =N202/2 -> 0 | O203: =IF(MOD(N202,2)>=1,1,0) -> 0
B204: 13 | C204: 18 | H204: =H203*2 -> 4 | J204: 2 | K204: RB(13,2) | L204: =B(13,2) | M204: =CONCATENATE("US(",C204,") , UR(",C204,")") -> US(18) , UR(18) | N204: =N203/2 -> 0 | O204: =IF(MOD(N203,2)>=1,1,0) -> 0
B205: 13 | C205: 19 | H205: 8 | J205: 3 | K205: RB(13,3) | L205: =B(13,3) | M205: US(19) , UR(19) | N205: 0 | O205: 0
B206: 13 | C206: 20 | H206: 16 | J206: 4 | K206: RB(13,4) | L206: =B(13,4) | M206: US(20) , UR(20) | N206: 0 | O206: 0
B207: 13 | C207: 21 | H207: 32 | J207: 5 | K207: RB(13,5) | L207: =B(13,5) | M207: US(21) , UR(21) | N207: 0 | O207: 0
B208: 13 | C208: 22 | H208: 64 | J208: 6 | K208: RB(13,6) | L208: =B(13,6) | M208: US(22) , UR(22) | N208: 0 | O208: 0
B209: 13 | C209: 23 | H209: 128 | J209: 7 | K209: RB(13,7) | L209: =B(13,7) | M209: US(23) , UR(23) | N209: 0 | O209: 0
B210: 13 | C210: 24 | H210: 256 | J210: 8 | K210: RB(13,8) | L210: =B(13,8) | M210: US(24) , UR(24) | N210: 0 | O210: 0
B211: 13 | C211: 25 | H211: 512 | J211: 9 | K211: RB(13,9) | L211: =B(13,9) | M211: US(25) , UR(25) | N211: 0 | O211: 0
B212: 13 | C212: 26 | H212: 1024 | J212: 10 | K212: RB(13,10) | L212: =B(13,10) | M212: US(26) , UR(26) | N212: 0 | O212: 0
B213: 13 | C213: 27 | H213: 2048 | J213: 11 | K213: RB(13,11) | L213: =B(13,11) | M213: US(27) , UR(27) | N213: 0 | O213: 0
B214: 13 | C214: 28 | H214: 4096 | J214: 12 | K214: RB(13,12) | L214: =B(13,12) | M214: US(28) , UR(28) | N214: 0 | O214: 0
... 39 more rows

Sheet CAN Port Status
I5: =E8 -> 196
C6: RCAN Status Decoder
C8: Enter Value for RCAN: | E8: 196 | F8: Value | G8: Status | H8: Bit
C9: CAN Power Okay | F9: 1 | G9: =IF(J9,"Asserted"," ") ->  | H9: 0 | I9: =I5/2 -> 98 | J9: =IF(MOD(I5,2)>=1,1,0) -> 0
C10: DeviceNet Com fault occurred | F10: =F9*2 -> 2 | G10: =IF(J10,"Asserted"," ") ->  | H10: 1 | I10: =I9/2 -> 49 | J10: =IF(MOD(I9,2)>=1,1,0) -> 0
C11: DeviceNet Power ignore option enabled | F11: =F10*2 -> 4 | G11: Asserted | H11: 2 | I11: =I10/2 -> 24.5 | J11: 1
F12: 8 | H12: 3 | I12: =I11/2 -> 12.25 | J12: 0
C13: User attempted to do Combitronics read from broadcast address | F13: 16 | H13: 4 | I13: =I12/2 -> 6.125 | J13: 0
C14: Combitronics debug, internal issue. | F14: 32 | H14: 5 | I14: 3.0625 | J14: 0
C15: Timeout (Combitronics Client) | F15: 64 | G15: Asserted | H15: 6 | I15: 1.53125 | J15: 1
C16: Combitronics server ran out of buffer slots. | F16: 128 | G16: Asserted | H16: 7 | I16: 0.765625 | J16: 1
C17: Errors reached warning level | F17: 256 | H17: 8 | I17: 0.3828125 | J17: 0
C18: Receive Errors reached warning level | F18: 512 | H18: 9 | I18: 0.19140625 | J18: 0
C19: Transmit Errors reached warning level | F19: 1024 | H19: 10 | I19: 0.095703125 | J19: 0
C20: Receive Passive Error | F20: 2048 | H20: 11 | I20: 0.0478515625 | J20: 0
C21: Transmit Passive Error (cable issue) | F21: 4096 | H21: 12 | I21: 0.02392578125 | J21: 0
C22: Bus Off Error | F22: 8192 | H22: 13 | I22: 0.01196289062 | J22: 0
C23: RX buffer 1 overflowed | F23: 16384 | H23: 14 | I23: 0.005981445312 | J23: 0
C24: RX buffer 0 overflowed | F24: 32768 | H24: 15 | I24: 0.002990722656 | J24: 0

Sheet Serial Port Status
A4: 0 | C4: Serial Port Status | I4: =E7 -> 10
C5: RCHN() Decoder
C7: Enter Value for RCHN(0) or RCHN(1): | E7: 10 | F7: Value | G7: Status | H7: Bit
C8: Buffer Overflow Error | F8: 1 | G8: =IF(J8,"Asserted"," ") ->  | H8: 0 | I8: =I4/2 -> 5 | J8: =IF(MOD(I4,2)>=1,1,0) -> 0
C9: Framing Error | F9: =F8*2 -> 2 | G9: =IF(J9,"Asserted"," ") -> Asserted | H9: 1 | I9: =I8/2 -> 2.5 | J9: =IF(MOD(I8,2)>=1,1,0) -> 1
C10: N/A | F10: =F9*2 -> 4 | H10: 2 | I10: =I9/2 -> 1.25 | J10: 0
C11: Parity Error | F11: 8 | G11: Asserted | H11: 3 | I11: =I10/2 -> 0.625 | J11: 1
C15: RCHN(n) or =CHN(n) where n is the id of the serial port.
C16: Returns an integer. Only the lower 4 bits indicate the state of the error
C18: Clearing Serial Port Errors
C19: It is up to the user to read which port caused the error using RCHN(n).
C20: Z(2,0) clear comm. Errors port 0
C21: Z(2,1) clear comm. Errors port 1
C22: The Status word 2 “Error channel 0” and “Error channel 1” bits will indicate if any error has occurred on that port. Those status bits will clear when the offending error is cleared with one of the commands listed above.

Sheet RMODE Report Mode
D5: Modes of operation per commands RMODE, RMODE(1), and RMODE(2)
C6: The MODE command contains integer values for what Mode of operation you are in.
C8: Issuing RMODE returns that value.
C10: Example: | D10: x=MODE | G10: Look Up RMODE Results by entering value here | J10: 1
D11: IF MODE==1 | G11: Mode: | J11: =LOOKUP(J10,F17:F31,G17:G31) -> POSITION | K11: =IF(J11="Mixed Mode"," Issue RMODE(1) or RMODE(2) for complete breakdown"," ") -> 
D12: WHILE MODE==4
C13: Note: When running dual trajectory Generators, RMODE(1) applies to Trajectory Generator 1, and RMODE(2) applies to trajectory Generator 2.
E14: RMODE, RMODE(1), and RMODE(2) all use same values for mode descriptions where they apply.
F16: Full List of values
F17: -5 | G17: Mixed Mode | H17: Mixed Mode
F18: =F17+1 -> -4 | G18: Cam Mode | H18: Electronic Camming
F19: =F18+1 -> -3 | G19: STEPDIR | H19: Step and Direction Mode
F20: -2 | G20: FOLLOW | H20: Electronic Gearing
F21: -1 | G21: N/A | H21: Future Use
F22: 0 | G22: NOMODE | H22: N/A
F23: 1 | G23: POSITION | H23: (MP command, default on startup)
F24: 2 | G24: N/A | H24: Future Use
F25: 3 | G25: VELOCITY | H25: (MV command)
F26: 4 | G26: TORQUE | H26: (MT command)
F27: 5 | G27: N/A | H27: Future Use
F28: 6 | G28: HOMING | H28: Future Use
F29: 7 | G29: INTPOSITION | H29: (Profiling via CANOpen only at this point)
F30: 8 | G30: N/A | H30: Future Use
F31: 9 | G31: N/A | H31: Future Use

Sheet Command Syntax Error codes
C4: Command Errors | D4: Status Word 2, Bit 14 | E4: PAGE DOWN FOR ERROR SOURCE !!!!!!
C5: If a command has resulted in error, the Command error bit (Status word 2, bit 14) will be tripped. It is up to the user to catch this and read what the error code is.
C6: Note: if multiple command managers are executing commands at the same time, it is possible for one to overwrite the other.
C7: RERRC or =ERRC | D7: Replies with a numeric value describing the most recent error.
C9: Look Up RERRC | D9: =LOOKUP(C10,C11:C44,D11:D44) -> NO_ERROR
C10: 0
C11: 0 | D11: NO_ERROR
C12: 1 | D12: BAD_LENGTH | E12: A command is too long, or contains too many parameters if a variable list of parameters is allowed.
C13: 2 | D13: BAD_ARGUMENT | E13: One or more of the values given to a command was out of range, so the command was aborted.
C14: 3 | D14: BAD_PACKET | E14: Command was not recognized. Check the command name and syntax.
C15: 4 | D15: BAD_OPERATION | E15: General error, command not allowed in the current state of the motor.
C16: 5 | D16: MISSING_ARGUMENT | E16: Incomplete formula
C17: 6 | D17: NOT USED | E17: Reserved
C18: 7 | D18: ERROR_PARENTHESIS | E18: Reserved
C19: 8 | D19: NOT USED | E19: Reserved
C20: 9 | D20: LENGTH_VIOLATION | E20: Embedded address in a user program was not found within the 64-character buffer for IF, SWITCH, GOTO, etc.
C21: 10 | D21: BAD_ARRAY_ADDR | E21: Array index outside the defined range.
C22: 11 | D22: DIVIDE_BY_ZERO | E22: Attempt to divide by 0.
C23: 12 | D23: STACK_OVERFLOW | E23: No room on stack for another 10 GOSUB and INTERRUPTS use the same stack.
C24: 13 | D24: STACK_UNDERFLOW | E24: RETURN or RETURNI with no place to return.
C25: 14 | D25: BAD_LABEL | E25: Label does not exist for GOSUB or GOTO.
C26: 15 | D26: NESTED_SWITCH | E26: Reserved (no longer used)
C27: 16 | D27: BAD_FORMULA | E27: Formula used in an assignment, IF, or SWITCH is improperly formatted. Check syntax, parenthesis, operators, etc.
C28: 17 | D28: BAD_WRITE_LENGTH | E28: VST command amount written too long
C29: 18 | D29: NOT_USED | E29: Reserved
C30: 19 | D30: BAD_BIT | E30: Z{letter} command issued for a bit that cannot be reset; ITR command may also show this error if incorrect bit number is specified.
C31: 20 | D31: INVALID_INTERRUPT | E31: EITR command for interrupt not defined.
C32: 21 | D32: NO_PERMISSION | E32: Operation or memory range is not user-accessible.
C33: 22 | D33: OPERATION_FAILED | E33: General error
C34: 23 | D34: MATH_OVERFLOW | E34: A math operation (add, multiply, etc.) overflowed, or an assignment to a variable where the value is outside of the allowable range.
C35: 24 | D35: CMD_TIMEOUT | E35: Combitronic timeout
C36: 25 | D36: IO_NOT_PRESENT | E36: Attempt to access an I/O point that does not exist.
C37: 26 | D37: NO_CROSS_AXIS_SUPPORT | E37: Attempt to use Combitronic on a command that does not support it.
C38: 27 | D38: BAD_MOTOR_STATE | E38: Reserved
C39: 28 | D39: BAD_CROSS_AXIS_ID | E39: Combitronic command issued to an invalid remote device address (greater than 127); requires firmware version 5.x.4.55 or later.
C40: 29 | D40: BAD_COMBITRONIC_FCODE | E40: The remote Combitronic does not support the command called, possibly due to older firmware or different motor series.
C41: 30 | D41: BAD_COMBITRONIC_SFCODE | E41: The remote Combitronic does not support the command called, possibly due to older firmware or different motor series.
C42: 31 | D42: EE_WRITE_QUEUE_FULL | E42: EEPROM in the motor was not able to save data as requested
C43: 32 | D43: CAM_FULL | E43: Cam table cannot fit a table of the specified size (CTA command).
C44: 33 | D44: GOSUB_GOTO_BLOCKED | E44: GOSUB attempted but motor cannot process it. This could happen when another command source (such as CANopen) attempts a GOSUB during a user program upload/download.
C46: RERRW or =ERRW | D46: Replies with a numeric code describing where the error came from. (What Com Port)
C47: Look Up RERRW | D47: =LOOKUP(C48,C49:C85,D49:D85) -> Com 0
C48: 0
C49: 0 | D49: Com 0 | E49: Communications port 0 (RS-232 for D-style, RS-485 for M-style)
C50: 1 | D50: Com 1 | E50: Communications port 1 (RS-485 for D-style only)
C51: 2 | D51: Program | E51: From user program running in the motor
C52: 3 | D52: Reserved | E52: Note: Class 6 firmware 6.0.2.36 and previous reported code 3 for program.
C53: 4 | D53: CANopen encapsulation | E53: This has been corrected in newer class 6 firmware versions.
C54: 5 | D54: Modbus encapsulation 0 | E54: Serial command encapsulation over Modbus RTU attached to Com 0.
C55: 6 | D55: Modbus encapsulation 1 | E55: Serial command encapsulation over Modbus RTU attached to Com 1.
C56: 7 | D56: TCP encapsulation | E56: Class 6 only, EtherNet/IP firmware only. Introduced firmware version 6.0.2.37.
C57: 8 | D57: USB | E57: Class 6 only
C58: 9 | D58: Special system use

Sheet Read Me Page
C5: Read Me Data for Developers Worksheet
C7: Scale Factor Calculator: | F7: User input may be converted to end user values in velocity and acceleration units or vice versa. | O7: Be sure to input correct Encoder resolution for the motor in question,.
O8: This may be obtained by issuing RRES at the terminal screen.
C11: Status Words: | F11: Decoder for use when motors are off line. Enables decoding of values when reporting entire 16 bit register at one.
F12: code examples relating to each value are listed to the right.
F13: Be sure to page down for all status words. Class 5 M series differs slightly in the I/O status words and will appear to the right of the D series motors.
C16: Can Port Status | F16: Any time there is a general CAN port error flagged, this page shows how to decode the RCAN command result or {variable}=CAN result in a program
C20: Serial Port Status | F20: Like CanPort Status, this allows decoding of general RS232 or RS485 serial port status.
C24: RMODE Decoder. | F24: Issuing RMODE or {variable}=MODE will return a value according to the present drive mode status.
C28: Syntax Error Codes | F28: This is more for determining the reason for a general syntax error and errors in code form PLC's or HMI's or other host programs. IT will aid in finding out why a command syntax was bad.
C30: NOTE: This is the first release of the Class 5 Developers Worksheet.
